bitfinex-derivatives/quotes_ETHF0:USTF0_20250103
["timestamp","ask_amount","ask_price","bid_price","bid_amount"]
[1735870666273,1.30226018,3476.1,3475.8,3.2078]
[1735870666468,1.30226018,3476.1,3476.0,0.28798]
[1735870666768,1.30226018,3476.1,3475.8,3.4958]
[1735870667364,1.30226018,3476.1,3475.9,0.28799]
[1735870667567,1.30226018,3475.9,3475.8,3.2078]
[1735870669770,1.59025018,3475.9,3475.8,3.2078]
[1735870669971,1.59025018,3475.9,3475.5,0.28802]
[1735870670272,1.30226018,3475.6,3475.5,0.28802]
[1735870671468,1.30226018,3475.6,3475.4,4.64283]
[1735870671773,0.28801,3475.8,3475.4,4.64283]
[1735870671774,1.30226018,3475.5,3475.4,4.64283]
[1735870671972,0.288,3475.8,3475.5,0.28802]
[1735870672284,43.06390849,3476.5,3475.5,0.28802]
[1735870672572,0.288,3475.9,3475.5,0.28802]
[1735870673476,0.288,3475.9,3475.4,4.3548]
[1735870673674,0.28799,3476.0,3475.7,0.28801]
[1735870674770,0.28799,3476.0,3474.9,3.2078]
[1735870674771,3.2078,3475.8,3474.9,3.2078]
[1735870674971,5.47170849,3475.6,3474.9,3.2078]
[1735870675166,3.2078,3476.3,3475.3,3.2078]
[1735870675371,0.288,3475.9,3475.5,0.28802]
[1735870675570,0.28801,3475.8,3475.4,0.28803]
[1735870675776,3.2078,3475.9,3475.3,4.64284]
[1735870675971,0.28802,3475.6,3475.3,4.64284]
[1735870676375,0.28801,3475.7,3475.4,0.28803]
[1735870676977,0.288,3475.8,3475.5,0.28802]
[1735870677373,40.8,3476.2,3475.3,3.2078]
[1735870677571,0.28803,3475.5,3475.3,3.2078]
[1735870678267,0.28802,3475.6,3475.3,3.49584]
[1735870678463,0.28801,3475.7,3475.4,0.28803]
[1735870678874,0.28802,3475.6,3475.3,3.49584]
[1735870680278,40.8,3476.2,3475.4,0.28803]
[1735870680481,0.288,3475.8,3475.4,0.28803]
[1735870680675,0.28801,3475.7,3475.4,0.28803]
[1735870680974,0.288,3475.9,3475.5,0.28802]
[1735870681380,0.288,3475.9,3475.6,0.28801]
[1735870681567,0.998,3476.1,3475.3,3.2078]
[1735870681768,0.998,3476.1,3476.0,0.28798]
[1735870682777,0.998,3476.1,3475.9,3.49579]
[1735870683079,0.998,3476.1,3476.0,0.28798]
[1735870683277,0.998,3476.2,3475.9,3.2078]
[1735870683469,0.998,3476.2,3476.1,0.28798]
[1735870684377,0.998,3476.2,3476.0,0.28798]
[1735870684579,0.998,3476.2,3476.1,0.28798]
[1735870684784,0.28796,3476.3,3476.0,0.28798]
[1735870685477,43.06390849,3476.6,3476.0,0.28798]
[1735870685680,0.28798,3476.0,3475.9,3.2078]
[1735870685875,2.55188849,3476.0,3475.9,2.5078]
[1735870689579,0.28798,3476.0,3475.9,2.5078]
[1735870690482,2.26390849,3476.3,3475.9,2.5078]
[1735870690676,0.28798,3476.1,3476.0,0.28798]
[1735870690876,2.26390849,3476.3,3475.9,2.5078]
[1735870690877,2.26390849,3476.3,3475.9,2.79579]
[1735870691083,0.28798,3476.0,3475.9,2.79579]
[1735870691470,0.28798,3476.1,3475.9,2.79579]
[1735870691887,0.28798,3476.1,3475.9,9.12754764]
[1735870692483,0.28798,3476.1,3476.0,6.33175764]
[1735870693888,2.26390849,3476.3,3476.0,13.03031099]
[1735870694080,2.26390849,3476.3,3476.0,15.3336658]
[1735870694282,0.28798,3476.1,3476.0,15.3336658]
[1735870694982,0.28798,3476.1,3476.0,6.33175764]
[1735870695180,3.49578,3476.1,3476.0,4.23265764]
[1735870695985,3.49578,3476.1,3476.0,3.53275764]
[1735870696885,0.28798,3476.0,3475.9,4.46503689]
[1735870697085,2.55188849,3476.0,3475.9,4.46503689]
[1735870697283,0.28798,3476.0,3475.9,4.46503689]
[1735870697983,0.28798,3476.0,3475.8,0.288]
[1735870698874,0.28799,3475.9,3475.8,0.288]
[1735870699085,2.26390849,3476.4,3475.8,9.00190816]
[1735870699380,0.28795,3476.4,3476.3,0.28796]
[1735870699580,3.49574,3476.5,3476.4,0.28795]
[1735870699787,0.28796,3476.4,3476.2,0.28796]
[1735870700088,43.06390849,3476.6,3476.1,9.00190816]
[1735870700287,0.28796,3476.4,3476.2,0.28797]
[1735870700783,0.28795,3476.5,3476.2,0.28796]
[1735870700984,0.28796,3476.4,3476.2,0.28796]
[1735870701781,43.06390849,3476.6,3476.1,9.00190816]
[1735870701976,0.28796,3476.3,3476.1,9.28987816]
[1735870702381,0.28796,3476.3,3476.2,9.00190816]
[1735870703486,0.28796,3476.3,3476.1,9.28987816]
[1735870703785,2.26390849,3476.6,3476.1,9.28987816]
[1735870703786,41.08797,3476.2,3476.1,9.00190816]
[1735870704791,40.8,3476.2,3476.0,9.00190816]
[1735870704985,2.55188849,3476.1,3476.0,9.00190816]
[1735870705682,2.55188849,3476.1,3475.3,0.28804]
[1735870705683,2.26390849,3476.1,3475.7,4.47350152]
[1735870705892,3.4958,3475.8,3475.7,4.47350152]
[1735870706785,3.2078,3475.8,3475.7,4.76151152]
[1735870706997,44.0078,3476.2,3475.7,7.68130152]
[1735870707186,3.2078,3476.2,3476.1,0.28798]
[1735870707489,3.49577,3476.2,3476.0,0.28798]
[1735870707684,3.2078,3476.2,3476.1,0.28798]
[1735870707895,3.2078,3476.2,3476.1,6.99823228]
[1735870708287,40.8,3476.6,3476.1,6.71025228]
[1735870708585,0.28795,3476.4,3476.1,6.71025228]
[1735870708790,0.28795,3476.4,3476.3,6.71025228]
[1735870710592,0.28795,3476.4,3476.3,6.99821228]
[1735870711286,0.28795,3476.4,3476.3,6.71025228]
[1735870712501,40.8,3476.6,3476.2,6.99822228]
[1735870712502,0.28796,3476.3,3476.2,6.99822228]
[1735870713091,0.28796,3476.3,3476.2,6.71025228]
[1735870714195,3.49576,3476.3,3476.2,6.71025228]
[1735870714790,44.29576,3476.3,3476.2,6.71025228]
[1735870715386,44.0078,3476.3,3475.9,4.47481703]
[1735870715586,2.55188849,3476.0,3475.9,4.47481703]
[1735870716788,0.28801,3475.7,3475.6,4.47481703]
[1735870716995,3.4958,3475.9,3475.7,0.288]
[1735870717495,0.28801,3475.8,3475.6,4.76283703]
[1735870717691,0.28801,3475.8,3475.6,0.28802]
[1735870718395,0.28801,3475.8,3475.7,0.28801]
[1735870718898,0.28801,3475.8,3475.7,6.35283148]
[1735870719492,2.26390849,3476.2,3475.7,6.06482148]
[1735870719896,0.28799,3476.0,3475.8,0.288]
[1735870720102,0.288,3475.8,3475.7,6.35283148]
[1735870720495,0.288,3475.9,3475.7,6.35283148]
[1735870720700,2.26390849,3476.2,3475.7,6.35283148]
[1735870720901,0.288,3475.8,3475.7,6.35283148]
[1735870721089,2.26390849,3476.2,3475.7,6.35283148]
[1735870721494,0.28798,3476.1,3475.7,6.35283148]
[1735870721697,0.288,3475.8,3475.7,6.35283148]
[1735870722194,0.288,3475.8,3475.7,6.06482148]
[1735870723601,0.288,3475.8,3475.6,9.00190816]
[1735870723602,2.26390849,3475.9,3475.6,13.47843373]
[1735870723803,0.28801,3475.7,3475.6,4.47652557]
[1735870724803,0.28801,3475.7,3475.6,6.06683317]
[1735870728606,0.288,3475.8,3475.6,6.06683317]
[1735870728912,0.288,3475.9,3475.7,0.288]
[1735870729907,0.288,3475.9,3475.8,6.06683317]
[1735870730106,2.26390849,3476.2,3475.8,6.06683317]
[1735870730302,2.26390849,3476.2,3475.8,6.35483317]
[1735870730497,0.28799,3475.9,3475.8,6.06683317]
[1735870730901,0.28799,3475.9,3475.7,9.28991816]
[1735870731299,2.26390849,3476.2,3475.7,9.28991816]
[1735870731502,0.288,3475.8,3475.7,9.00190816]
[1735870732502,41.088,3475.8,3475.7,9.00190816]
[1735870733009,41.088,3475.8,3475.7,6.06753805]
[1735870739116,40.8,3475.8,3475.7,4.47608635]
[1735870739412,41.088,3475.8,3475.7,4.47608635]
[1735870741420,0.28802,3475.6,3475.5,4.47608635]
[1735870742308,0.28802,3475.6,3475.5,6.06734698]
[1735870743312,0.28802,3475.6,3475.5,6.35537698]
[1735870743906,0.28802,3475.6,3475.5,6.06734698]
[1735870745813,40.8,3475.8,3475.5,6.06734698]
[1735870746016,0.28801,3475.7,3475.6,0.28801]
[1735870746218,40.8,3475.8,3475.7,0.28801]
[1735870746719,41.088,3475.8,3475.7,0.28801]
[1735870746922,40.8,3475.8,3475.7,0.28801]
[1735870747115,0.28797,3476.2,3476.1,0.28798]
[1735870747517,0.28796,3476.3,3476.2,0.28796]
[1735870748015,41.08796,3476.3,3476.2,0.28796]
[1735870748324,41.08796,3476.3,3476.2,6.06734698]
[1735870748618,40.8,3476.3,3476.2,6.35531698]
[1735870748821,41.08796,3476.3,3476.2,6.35531698]
[1735870750335,0.00284889,3476.4,3476.2,6.35531698]
[1735870750336,0.29080889,3476.4,3476.2,6.35531698]
[1735870750820,41.09080889,3476.4,3476.2,6.35531698]
[1735870751418,41.09080889,3476.4,3476.3,6.06734698]
[1735870755023,41.09080889,3476.4,3476.3,6.35530698]
[1735870758622,40.80284889,3476.4,3476.3,6.35530698]
[1735870759622,40.80284889,3476.4,3476.3,6.06734698]
[1735870759828,41.09079889,3476.4,3476.3,6.06734698]
[1735870760930,41.09079889,3476.4,3476.3,2.29754698]
[1735870761729,0.28798,3476.1,3476.0,9.00190816]
[1735870761937,0.28801,3475.7,3475.6,4.47253618]
[1735870762529,2.55191849,3475.7,3475.6,4.47253618]
[1735870763327,0.28802,3475.6,3475.5,4.47253618]
[1735870765930,41.08802,3475.6,3475.5,4.47253618]
[1735870767333,0.28803,3475.5,3475.4,4.47253618]
[1735870768537,0.28803,3475.4,3475.3,3.49584]
[1735870768741,2.26390849,3475.7,3475.3,3.49584]
[1735870769236,0.28803,3475.4,3475.3,3.2078]
[1735870769432,0.28803,3475.4,3475.3,3.49584]
[1735870769638,0.28803,3475.4,3475.3,3.2078]
[1735870769939,41.08803,3475.4,3475.3,3.49584]
[1735870770544,41.08803,3475.4,3475.3,3.2078]
[1735870771741,0.28804,3475.3,3475.2,4.47199531]
[1735870772047,0.28804,3475.3,3474.8,9.00190816]
[1735870772048,0.28808,3474.9,3474.8,9.00190816]
[1735870772241,5.75978849,3474.9,3474.8,8.24816285]
[1735870772839,46.55978849,3474.9,3474.8,8.24816285]
[1735870773144,46.55978849,3474.9,3474.1,3.2078]
[1735870773145,0.28813,3474.2,3474.1,3.2078]
[1735870778754,44.0078,3474.9,3474.1,3.2078]
[1735870778958,0.28811,3474.5,3474.3,0.28812]
[1735870780050,44.0078,3475.0,3474.1,3.2078]
[1735870780253,44.0078,3475.0,3474.5,3.2078]
[1735870780254,40.8,3475.0,3474.5,3.2078]
[1735870780453,2.26390849,3475.3,3474.5,3.2078]
[1735870780657,5.24059588,3476.0,3474.9,3.2078]
[1735870780658,2.26390849,3475.6,3474.9,3.2078]
[1735870780853,0.28805,3475.2,3475.0,0.28806]
[1735870781061,0.28806,3475.2,3475.0,0.28807]
[1735870781454,40.8,3475.5,3475.4,0.28803]
[1735870781655,40.8,3475.5,3475.4,3.49583]
[1735870782554,40.8,3475.5,3475.4,4.65283]
[1735870783255,0.28798,3476.1,3475.9,0.28799]
[1735870783559,0.28798,3476.1,3475.4,4.3648]
[1735870783560,41.08799,3476.0,3475.7,0.28801]
[1735870783757,40.8,3476.0,3475.4,4.3648]
[1735870784054,0.28801,3475.7,3475.4,4.65283]
[1735870784261,0.28799,3475.9,3475.7,0.28801]
[1735870784557,0.288,3475.9,3475.6,0.28801]
[1735870784757,0.288,3475.9,3475.5,0.28803]
[1735870784958,0.288,3475.9,3475.7,0.28801]
[1735870785161,40.8,3476.0,3475.4,4.3648]
[1735870785351,41.08799,3476.0,3475.8,0.288]
[1735870786061,40.8,3476.0,3475.9,0.28799]
[1735870786254,40.8,3476.0,3475.8,3.2078]
[1735870786455,40.8,3476.0,3475.8,3.4958]
[1735870786960,0.28799,3475.9,3475.8,3.2078]
[1735870787155,41.08799,3476.0,3475.8,3.2078]
[1735870787563,0.28799,3475.9,3475.8,3.2078]
[1735870788564,0.28799,3475.9,3475.8,3.2078]
[1735870788766,41.08799,3476.0,3475.8,3.2078]
[1735870789670,41.08799,3476.0,3475.8,0.288]
[1735870789864,41.08799,3476.0,3475.4,4.3648]
[1735870790072,0.288,3475.9,3475.7,0.288]
[1735870790568,0.288,3475.9,3475.5,0.28803]
[1735870790761,0.288,3475.9,3475.6,0.28801]
[1735870791069,40.8,3476.0,3475.8,3.2078]
[1735870791270,40.8,3476.0,3475.9,0.28799]
[1735870791460,0.28799,3475.9,3475.8,3.2078]
[1735870791665,0.28801,3475.7,3475.4,3.2078]
[1735870791869,40.8,3476.0,3475.4,3.49583]
[1735870792069,0.28803,3475.5,3475.4,3.2078]
[1735870792469,0.28805,3475.2,3475.1,6.70004674]
[1735870792669,0.28805,3475.3,3475.1,0.28806]
[1735870794870,2.26390849,3475.5,3475.0,3.2078]
[1735870795075,0.28806,3475.1,3475.0,3.2078]
[1735870799070,41.08806,3475.1,3475.0,3.2078]
[1735870803974,2.26390849,3475.2,3475.0,3.2078]
[1735870803975,2.26390849,3475.5,3475.0,3.2078]
[1735870804171,0.28805,3475.2,3475.0,3.2078]
[1735870807075,40.8,3475.5,3475.4,0.28803]
[1735870807378,41.08803,3475.5,3475.0,3.2078]
[1735870807675,0.28806,3475.2,3475.0,3.49586]
[1735870807977,0.28803,3475.4,3475.2,0.28805]
[1735870808274,0.28805,3475.3,3475.1,0.28805]
[1735870809483,40.8,3475.5,3475.0,3.49587]
[1735870809678,0.28806,3475.1,3475.0,3.2078]
[1735870810781,2.55196849,3475.1,3475.0,3.2078]
[1735870811483,43.35196849,3475.1,3475.0,3.2078]
[1735870812380,41.08806,3475.1,3475.0,3.2078]
[1735870813380,40.8,3475.1,3475.0,3.2078]
[1735870813578,2.26390849,3475.4,3475.0,3.2078]
[1735870813882,0.28806,3475.1,3475.0,3.2078]
[1735870814274,40.8,3475.3,3475.0,3.2078]
[1735870814580,41.08804,3475.3,3475.1,0.28805]
[1735870814780,41.08804,3475.3,3475.2,0.28805]
[1735870814781,40.8,3475.3,3475.2,0.28805]
[1735870814978,2.26390849,3475.7,3475.0,3.2078]
[1735870815185,3.2078,3475.8,3475.7,0.28801]
[1735870815380,2.26390849,3476.3,3475.6,3.2078]
[1735870815574,0.288,3475.9,3475.7,0.28801]
[1735870815977,0.28801,3475.8,3475.6,3.49581]
[1735870816277,40.8,3476.2,3475.8,0.288]
[1735870816484,0.288,3475.9,3475.7,0.288]
[1735870816776,0.288,3475.8,3475.7,0.288]
[1735870817183,40.8,3476.2,3475.8,0.288]
[1735870817485,0.28801,3475.7,3475.6,3.49582]
[1735870817682,40.8,3476.2,3475.7,0.288]
[1735870817683,0.288,3475.9,3475.7,0.288]
[1735870817885,40.8,3476.2,3475.6,3.49581]
[1735870818185,0.28801,3475.8,3475.6,3.49581]
[1735870818880,40.8,3476.2,3475.6,3.2078]
[1735870819080,0.28801,3475.7,3475.6,3.2078]
[1735870819584,0.28801,3475.7,3475.5,0.28802]
[1735870820080,40.8,3476.2,3475.6,3.2078]
[1735870820384,0.28799,3475.9,3475.7,0.28801]
[1735870821081,0.28799,3475.9,3475.8,0.288]
[1735870821677,40.8,3476.2,3475.8,0.288]
[1735870821876,0.28799,3476.0,3475.8,0.288]
[1735870822079,0.28799,3476.0,3475.6,3.2078]
[1735870822080,40.8,3476.2,3475.6,3.2078]
[1735870822281,0.288,3475.9,3475.7,0.28801]
[1735870822478,40.8,3476.2,3475.6,3.2078]
[1735870822879,0.28798,3476.0,3475.8,0.288]
[1735870825189,0.28798,3476.0,3475.7,0.28801]
[1735870825488,0.28798,3476.1,3475.9,0.28799]
[1735870827986,40.8,3476.2,3475.6,3.2078]
[1735870828283,40.8,3476.2,3476.1,0.28798]
[1735870828487,41.08797,3476.2,3476.1,0.28798]
[1735870828794,40.8,3476.2,3476.1,0.28798]
[1735870829289,41.08797,3476.2,3476.1,0.28798]
[1735870829490,40.8,3476.2,3476.1,0.28798]
[1735870832087,3.2078,3476.9,3476.1,2.55188849]
[1735870832290,4.52061588,3477.1,3477.0,0.2879]
[1735870832591,45.32061588,3477.1,3476.5,3.2078]
[1735870832790,45.32061588,3477.1,3477.0,0.2879]
[1735870832791,45.60851588,3477.1,3477.0,0.2879]
[1735870833291,45.60851588,3477.1,3476.9,0.2879]
[1735870833492,45.32061588,3477.1,3476.5,3.2078]
[1735870833691,41.0879,3477.1,3476.5,9.90784674]
[1735870833986,40.8,3477.1,3476.5,9.90784674]
[1735870834191,41.08789,3477.1,3476.5,9.90784674]
[1735870834393,0.28793,3476.7,3476.5,6.98798674]
[1735870834583,0.28793,3476.6,3476.5,6.70004674]
[1735870834980,40.8,3477.1,3476.5,5.47170849]
[1735870835189,3.2078,3477.3,3477.2,0.28788]
[1735870835687,3.2078,3477.8,3477.3,0.28787]
[1735870835896,3.2078,3477.8,3477.0,4.3548]
[1735870836194,3.2078,3477.8,3477.7,0.28784]
[1735870836486,2.26390849,3478.3,3477.4,3.2078]
[1735870836687,7.72841588,3478.4,3477.8,3.2078]
[1735870836884,7.72841588,3478.4,3477.9,0.28783]
[1735870837080,7.72841588,3478.4,3477.8,3.2078]
[1735870837081,7.72841588,3478.4,3477.8,5.47170849]
[1735870837486,3.2078,3478.4,3477.8,5.47170849]
[1735870837882,3.2078,3478.4,3478.3,0.28779]
[1735870841497,3.2078,3478.4,3477.8,3.2078]
[1735870841797,5.47170849,3478.4,3477.8,3.2078]
[1735870841991,40.8,3477.9,3477.8,3.49563]
[1735870842388,40.8,3477.9,3477.4,3.2078]
[1735870842597,0.28784,3477.8,3477.4,0.28787]
[1735870842794,0.28784,3477.8,3477.5,0.28785]
[1735870843100,0.28782,3478.0,3477.4,0.28786]
[1735870843397,0.28784,3477.8,3477.4,0.28786]
[1735870843597,2.26390849,3478.1,3477.3,1.147]
[1735870843798,2.26390849,3478.1,3477.7,0.28784]
[1735870843998,2.26390849,3478.1,3477.3,1.147]
[1735870843999,40.8,3477.8,3477.4,3.2078]
[1735870844193,40.8,3477.8,3477.7,0.28784]
[1735870844393,40.8,3477.8,3477.4,3.2078]
[1735870844598,40.8,3477.8,3477.6,0.28785]
[1735870844898,40.8,3477.8,3477.7,0.28784]
[1735870845497,40.8,3477.8,3477.4,3.2078]
[1735870845695,0.28785,3477.7,3477.4,3.49567]
[1735870847101,0.28785,3477.7,3477.5,0.28786]
[1735870847398,41.08784,3477.8,3477.4,3.2078]
[1735870847596,0.28784,3477.7,3477.4,3.49567]
[1735870848000,40.8,3477.8,3477.4,3.2078]
[1735870848201,40.8,3477.8,3477.4,3.49567]
[1735870848202,0.28785,3477.7,3477.4,3.49567]
[1735870848397,40.8,3477.8,3477.4,3.49567]
[1735870848597,0.28785,3477.7,3477.4,3.2078]
[1735870848803,41.08784,3477.8,3477.5,0.28786]
[1735870849102,0.28785,3477.6,3477.4,3.2078]
[1735870849808,0.28786,3477.5,3477.4,3.2078]
[1735870850211,2.26390849,3477.5,3477.0,3.2078]
[1735870850404,2.26390849,3477.5,3476.4,1.147]
[1735870850405,3.2078,3477.3,3476.5,3.2078]
[1735870850618,0.28791,3477.0,3476.5,3.2078]
[1735870850815,0.2879,3477.1,3476.5,3.2078]
[1735870851004,3.2078,3477.3,3476.6,2.26390849]
[1735870851209,0.28787,3477.4,3477.1,0.28789]
[1735870851402,0.28786,3477.6,3477.3,0.28787]
[1735870851603,0.28785,3477.7,3477.4,0.28787]
[1735870851900,0.28785,3477.7,3477.5,0.28786]
[1735870852503,41.08784,3477.8,3477.6,0.28785]
[1735870852705,40.8,3477.8,3477.7,0.28784]
[1735870853006,41.08784,3477.8,3477.4,3.2078]
[1735870853212,41.08784,3477.8,3477.6,0.28785]
[1735870853505,40.8,3477.8,3477.1,1.147]
[1735870853704,0.28786,3477.6,3477.4,0.28787]
[1735870853907,40.8,3477.8,3477.1,1.147]
[1735870854107,0.28787,3477.4,3477.2,0.28788]
[1735870854309,46.27170849,3477.8,3477.1,1.147]
[1735870854814,0.28787,3477.4,3477.2,0.28788]
[1735870855616,0.28788,3477.3,3477.1,1.43489]
[1735870855811,46.27170849,3477.8,3477.1,1.43489]
[1735870855812,0.28788,3477.2,3477.1,1.147]
[1735870856317,0.28788,3477.3,3477.1,1.43489]
[1735870856706,0.28788,3477.3,3477.1,1.147]
[1735870856916,0.28788,3477.3,3477.1,1.43489]
[1735870858209,46.27170849,3477.8,3477.2,0.28788]
[1735870858210,0.28784,3477.7,3477.2,0.28788]
[1735870858405,46.27170849,3477.8,3477.1,1.147]
[1735870858613,0.28787,3477.4,3477.2,0.28788]
[1735870858913,0.28788,3477.2,3477.1,1.147]
[1735870859112,0.28788,3477.2,3477.1,1.43489]
[1735870859415,2.26390849,3477.2,3476.6,3.2078]
[1735870859611,0.28793,3476.7,3476.6,3.2078]
[1735870860015,41.08793,3476.7,3476.6,3.2078]
[1735870860317,41.08793,3476.7,3476.5,0.28794]
[1735870861319,0.28793,3476.6,3476.4,0.28795]
[1735870861619,0.28793,3476.6,3476.3,0.28796]
[1735870862519,0.28793,3476.6,3476.4,0.28795]
[1735870862718,40.8,3476.7,3476.6,0.28793]
[1735870863214,3.2078,3477.4,3476.6,2.26390849]
[1735870863518,0.28789,3477.1,3476.9,3.4957]
[1735870863721,40.8,3477.3,3476.9,3.2078]
[1735870863917,40.8,3477.3,3477.0,0.28789]
[1735870864110,0.28789,3477.1,3476.9,3.49571]
[1735870864616,0.28788,3477.2,3476.9,0.28791]
[1735870864914,0.2879,3477.0,3476.9,0.28791]
[1735870865118,40.8,3477.3,3476.6,0.28793]
[1735870865309,0.28792,3476.8,3476.6,0.28793]
[1735870866114,0.2879,3477.1,3476.9,0.2879]
[1735870866316,0.28791,3477.0,3476.8,0.28791]
[1735870866514,0.28791,3476.9,3476.7,0.28792]
[1735870867018,40.8,3477.3,3476.7,0.28792]
[1735870867219,40.8,3477.3,3476.5,4.3618]
[1735870867417,40.8,3477.3,3476.8,0.28791]
[1735870867618,0.28791,3477.0,3476.8,0.28791]
[1735870868221,40.8,3477.3,3476.5,4.3618]
[1735870868612,0.28791,3476.9,3476.5,4.3618]
[1735870868815,0.28791,3476.9,3476.8,0.28792]
[1735870869016,0.28791,3476.9,3476.7,0.28792]
[1735870869623,0.28791,3476.9,3476.8,0.28792]
[1735870869819,0.28792,3476.8,3476.6,0.28793]
[1735870870032,0.28792,3476.8,3476.7,0.28793]
[1735870870524,0.28792,3476.8,3476.6,0.28793]
[1735870870723,0.28792,3476.8,3476.7,0.28793]
[1735870870923,0.28791,3476.9,3476.7,0.28793]
[1735870871123,0.28792,3476.8,3476.7,0.28793]
[1735870871419,0.28793,3476.6,3476.5,3.2078]
[1735870871820,0.28793,3476.6,3476.4,0.28794]
[1735870872018,3.2078,3477.1,3476.1,3.2078]
[1735870872019,2.26390849,3477.0,3476.2,1.44196]
[1735870872223,0.28797,3476.2,3476.1,3.2078]
[1735870872921,0.28797,3476.2,3476.1,3.49578]
[1735870874629,0.28796,3476.4,3476.3,0.28796]
[1735870874925,0.28795,3476.5,3476.3,0.28796]
[1735870875227,41.08795,3476.4,3476.3,0.28796]
[1735870875419,40.8,3476.4,3476.3,0.28796]
[1735870876219,40.8,3476.4,3476.1,3.2078]
[1735870876421,40.8,3476.4,3476.3,0.28796]
[1735870880029,41.08795,3476.4,3476.3,0.28796]
[1735870880224,43.06390849,3476.4,3476.1,3.2078]
[1735870880527,43.06390849,3476.4,3475.9,6.65563753]
[1735870880528,0.28798,3476.0,3475.9,6.65563753]
[1735870880725,2.55188849,3476.0,3475.9,6.65563753]
[1735870880920,0.28798,3476.1,3475.9,6.94362753]
[1735870881320,0.28798,3476.1,3476.0,0.28798]
[1735870881526,0.28798,3476.1,3475.9,6.94362753]
[1735870881741,0.28798,3476.1,3476.0,0.28798]
[1735870882030,0.28798,3476.1,3475.9,0.28799]
[1735870882423,0.28798,3476.1,3475.7,3.2078]
[1735870882622,40.8,3476.4,3476.1,0.28798]
[1735870883020,40.8,3476.4,3475.7,3.2078]
[1735870883324,0.28797,3476.2,3476.0,0.28798]
[1735870884524,40.8,3476.4,3476.3,0.28796]
[1735870884924,41.08795,3476.4,3476.3,0.28796]
[1735870885325,40.8,3476.4,3476.1,3.2078]
[1735870885828,0.28797,3476.2,3476.1,3.2078]
[1735870886434,0.28797,3476.2,3476.1,3.49578]
[1735870886935,0.28797,3476.2,3476.1,3.2078]
[1735870887127,0.28797,3476.2,3476.1,3.49578]
[1735870888535,0.28797,3476.2,3476.1,3.2078]
[1735870889435,0.28797,3476.2,3476.1,3.49578]
[1735870889629,0.28797,3476.2,3476.1,3.2078]
[1735870889932,0.28797,3476.2,3476.1,3.49577]
[1735870890636,0.28797,3476.2,3476.1,3.2078]
[1735870890937,40.8,3476.4,3476.1,3.2078]
[1735870891129,41.08796,3476.4,3476.1,3.2078]
[1735870891328,0.28796,3476.3,3476.2,0.28796]
[1735870892637,0.28796,3476.3,3476.1,0.28798]
[1735870893236,40.8,3476.4,3475.9,4.45873961]
[1735870893436,0.28797,3476.2,3476.0,0.28798]
[1735870893734,0.28798,3476.0,3475.9,4.45873961]
[1735870894237,0.28799,3475.9,3475.8,4.45873961]
[1735870895039,0.28799,3476.0,3475.8,4.74673961]
[1735870895538,0.28799,3476.0,3475.8,0.288]
[1735870895932,40.8,3476.4,3475.7,8.82053961]
[1735870896133,0.28798,3476.1,3475.9,0.28799]
[1735870896331,40.8,3476.4,3475.9,0.28799]
[1735870896537,0.28798,3476.1,3475.9,0.28799]
[1735870897031,0.288,3475.9,3475.7,7.66653961]
[1735870897634,40.8,3476.4,3475.7,7.66653961]
[1735870897938,41.51989,3476.4,3475.7,7.95453961]
[1735870898341,40.8,3476.4,3475.7,7.66653961]
[1735870898532,0.28799,3475.9,3475.7,7.95453961]
[1735870898728,0.28799,3475.9,3475.7,3.4958]
[1735870899141,40.8,3476.4,3475.7,3.2078]
[1735870899344,0.288,3475.9,3475.7,3.2078]
[1735870899537,0.288,3475.9,3475.7,3.4958]
[1735870899944,0.288,3475.9,3475.7,7.95453961]
[1735870900535,0.288,3475.9,3475.8,0.288]
[1735870902843,0.28799,3476.0,3475.8,0.288]
[1735870903636,0.28799,3476.0,3475.5,6.65563753]
[1735870903637,40.8,3476.4,3475.6,4.45873961]
[1735870903841,2.26390849,3476.2,3475.7,0.288]
[1735870904040,0.288,3475.9,3475.7,0.288]
[1735870904538,40.8,3476.4,3475.6,4.45873961]
[1735870904742,0.28799,3476.0,3475.8,0.288]
[1735870905240,0.28798,3476.1,3475.9,0.28799]
[1735870905544,0.28798,3476.0,3475.9,0.28799]
[1735870905842,0.28797,3476.2,3475.8,0.288]
[1735870906036,0.28796,3476.3,3476.2,0.28796]
[1735870906242,40.8,3476.4,3476.2,0.28796]
[1735870906433,41.08796,3476.4,3476.3,0.28796]
[1735870906831,40.8,3476.4,3476.3,0.28796]
[1735870907345,40.8,3476.4,3476.3,2.55186849]
[1735870907539,4.49802159,3477.0,3476.9,0.28791]
[1735870908543,45.29802159,3477.0,3476.9,0.28791]
[1735870908944,40.8,3477.0,3476.9,5.97849276]
[1735870910246,40.8,3477.0,3476.9,12.63413029]
[1735870910447,0.28787,3477.4,3477.1,0.28789]
[1735870911343,40.8,3477.3,3477.1,0.28789]
[1735870912148,40.8,3477.3,3477.1,3.49569]
[1735870912542,41.08788,3477.3,3477.1,3.2078]
[1735870912743,40.8,3477.3,3477.1,3.49569]
[1735870913747,40.8,3477.3,3476.9,4.45308167]
[1735870913947,0.2879,3477.0,3476.9,4.45308167]
[1735870914641,40.8,3477.3,3476.9,4.45308167]
[1735870914841,0.28789,3477.2,3476.9,4.74099167]
[1735870915041,0.28789,3477.2,3476.9,0.28791]
[1735870915338,0.2879,3477.1,3476.8,0.28792]
[1735870915740,0.28791,3477.0,3476.7,0.28792]
[1735870915945,0.28792,3476.9,3476.6,0.28793]